fUSD/lending_fUSD_20240719
["ID","MTS","AMOUNT","RATE_DAILY","PERIOD"]
[332666308,1721413842219,-153.12,0.0003417,2]
[332666310,1721413842229,-4702.34558792,0.00034177,2]
[332666312,1721413842238,-23419.15792843,0.0003418,11]
[332666314,1721413842247,-1592478.25153542,0.0003418,2]
[332666316,1721413842259,-274.40891767,0.0003418,2]
[332666319,1721413842270,-1604.0,0.000342,12]
[332666320,1721413842280,-153.12,0.00034236,2]
[332666322,1721413842289,-393.97472821,0.00034246,14]
[332666324,1721413842299,-500.0,0.00034246,14]
[332666326,1721413842308,-500.0,0.00034246,14]
[332666328,1721413842317,-527.61963142,0.00034246,14]
[332666330,1721413842327,-500.0,0.00034246,14]
[332666332,1721413842336,-500.0,0.00034246,14]
[332666334,1721413842345,-500.0,0.00034246,14]
[332666336,1721413842355,-500.0,0.00034246,14]
[332666338,1721413842364,-500.0,0.00034246,14]
[332666340,1721413842374,-500.0,0.00034246,14]
[332666342,1721413842383,-500.0,0.00034246,14]
[332666344,1721413842392,-500.0,0.00034246,14]
[332666346,1721413842401,-500.0,0.00034246,14]
[332666348,1721413842411,-980.61,0.00034246,14]
[332666350,1721413842419,-500.0,0.00034246,14]
[332666352,1721413842429,-500.0,0.00034246,14]
[332666354,1721413842440,-500.0,0.00034246,14]
[332666357,1721413842450,-508.51,0.00034246,14]
[332666358,1721413842460,-500.0,0.00034246,14]
[332666360,1721413842469,-500.0,0.00034246,14]
[332666362,1721413842479,-500.0,0.00034246,14]
[332666364,1721413842488,-505.2,0.00034246,14]
[332666366,1721413842497,-557.06,0.00034246,14]
[332666368,1721413842506,-296.16889664,0.00034246,14]
[332666370,1721413842515,-500.0,0.00034246,14]
[332666372,1721413842524,-500.0,0.00034246,14]
[332666374,1721413842535,-500.0,0.00034246,14]
[332666377,1721413842546,-500.0,0.00034246,14]
[332666379,1721413842556,-500.0,0.00034246,14]
[332666381,1721413842566,-465.30037632,0.00034246,14]
[332666383,1721413842575,-500.0,0.00034246,14]
[332666385,1721413842585,-500.0,0.00034246,14]
[332666387,1721413842594,-500.0,0.00034246,14]
[332666389,1721413842603,-500.0,0.00034246,14]
[332666391,1721413842612,-500.0,0.00034246,14]
[332666393,1721413842621,-500.0,0.00034246,14]
[332666395,1721413842630,-944.18,0.00034246,14]
[332666397,1721413842639,-500.0,0.00034246,14]
[332666399,1721413842649,-500.0,0.00034246,14]
[332666401,1721413842658,-1118.97,0.00034246,14]
[332666403,1721413842667,-500.0,0.00034246,14]
[332666405,1721413842677,-500.0,0.00034246,14]
[332666407,1721413842686,-500.0,0.00034246,14]
[332666409,1721413842695,-500.0,0.00034246,14]
[332666411,1721413842705,-1039.46,0.00034246,14]
[332666413,1721413842714,-500.0,0.00034246,14]
[332666414,1721413842724,-500.0,0.00034246,14]
[332666417,1721413842733,-523.11,0.00034246,14]
[332666419,1721413842742,-506.34607576,0.00034246,14]
[332666421,1721413842752,-614.12,0.00034246,14]
[332666423,1721413842761,-500.0,0.00034246,14]
[332666424,1721413842770,-500.0,0.00034246,14]
[332666427,1721413842780,-576.17,0.00034246,14]
[332666429,1721413842790,-500.0,0.00034246,14]
[332666431,1721413842799,-500.0,0.00034246,14]
[332666433,1721413842808,-500.0,0.00034246,14]
[332666435,1721413842818,-2329.2,0.00034246,14]
[332666436,1721413842827,-500.0,0.00034246,14]
[332666438,1721413842835,-500.0,0.00034246,14]
[332666440,1721413842845,-500.0,0.00034246,14]
[332666442,1721413842854,-509.57,0.00034246,14]
[332666444,1721413842864,-500.0,0.00034246,14]
[332666446,1721413842875,-1136.18,0.00034246,14]
[332666448,1721413842886,-1135.69,0.00034246,14]
[332666450,1721413842895,-1571.8,0.00034246,14]
[332666452,1721413842904,-500.0,0.00034246,14]
[332666454,1721413842914,-500.0,0.00034246,14]
[332666456,1721413842925,-544.71,0.00034246,14]
[332666458,1721413842934,-500.0,0.00034246,14]
[332666460,1721413842943,-500.0,0.00034246,14]
[332666462,1721413842953,-500.0,0.00034246,14]
[332666464,1721413842963,-500.0,0.00034246,14]
[332666466,1721413842972,-500.0,0.00034246,14]
[332666468,1721413842982,-514.07,0.00034246,14]
[332666470,1721413842992,-500.0,0.00034246,14]
[332666473,1721413843003,-592.25,0.00034246,14]
[332666475,1721413843013,-500.0,0.00034246,14]
[332666477,1721413843022,-500.0,0.00034246,14]
[332666479,1721413843033,-678.0,0.00034246,14]
[332666481,1721413843043,-4526.53,0.00034246,14]
[332666483,1721413843052,-500.0,0.00034246,14]
[332666485,1721413843062,-2030.06,0.00034246,14]
[332666487,1721413843072,-500.0,0.00034246,14]
[332666490,1721413843083,-500.0,0.00034246,14]
[332666491,1721413843092,-589.85,0.00034246,14]
[332666493,1721413843101,-659.21,0.00034246,14]
[332666496,1721413843111,-500.0,0.00034246,14]
[332666498,1721413843120,-500.0,0.00034246,14]
[332666500,1721413843130,-500.0,0.00034246,14]
[332666502,1721413843140,-500.0,0.00034246,14]
[332666504,1721413843152,-500.0,0.00034246,14]
[332666506,1721413843163,-7775.78,0.00034246,14]
[332666508,1721413843175,-508.89,0.00034246,14]
[332666510,1721413843185,-590.84,0.00034246,14]
[332666512,1721413843194,-859.05,0.00034246,14]
[332666514,1721413843204,-500.0,0.00034246,14]
[332666516,1721413843214,-500.0,0.00034246,14]
[332666518,1721413843223,-10543.65,0.00034246,14]
[332666521,1721413843235,-1053.88,0.00034246,14]
[332666523,1721413843245,-500.0,0.00034246,14]
[332666525,1721413843255,-500.0,0.00034246,14]
[332666527,1721413843266,-595.6,0.00034246,14]
[332666529,1721413843277,-500.0,0.00034246,14]
[332666531,1721413843286,-500.0,0.00034246,14]
[332666533,1721413843296,-1518.27,0.00034246,14]
[332666535,1721413843305,-511.06,0.00034246,14]
[332666537,1721413843315,-500.0,0.00034246,14]
[332666539,1721413843324,-500.0,0.00034246,14]
[332666541,1721413843333,-500.0,0.00034246,14]
[332666543,1721413843342,-2956.01,0.00034246,14]
[332666545,1721413843351,-500.0,0.00034246,14]
[332666547,1721413843360,-513.91,0.00034246,14]
[332666549,1721413843369,-1108.57,0.00034246,14]
[332666551,1721413843380,-958.57,0.00034246,14]
[332666553,1721413843390,-9024.26,0.00034246,14]
[332666555,1721413843399,-500.0,0.00034246,14]
[332666557,1721413843409,-2098.28,0.00034246,14]
[332666559,1721413843418,-1289.08,0.00034246,14]
[332666561,1721413843427,-400.91380164,0.00034246,14]
[332666563,1721413843437,-500.0,0.00034246,14]
[332666565,1721413843446,-543.76,0.00034246,14]
[332666567,1721413843456,-500.0,0.00034246,14]
[332666569,1721413843466,-2497.42,0.00034246,14]
[332666571,1721413843475,-1341.91,0.00034246,14]
[332666573,1721413843484,-500.0,0.00034246,14]
[332666575,1721413843494,-500.0,0.00034246,14]
[332666577,1721413843503,-3379.78,0.00034246,14]
[332666579,1721413843512,-628.5,0.00034246,14]
[332666581,1721413843521,-500.0,0.00034246,14]
[332666583,1721413843530,-500.0,0.00034246,14]
[332666585,1721413843539,-500.0,0.00034246,14]
[332666586,1721413843548,-512.95,0.00034246,14]
[332666588,1721413843557,-500.0,0.00034246,14]
[332666590,1721413843566,-500.0,0.00034246,14]
[332666593,1721413843575,-500.0,0.00034246,14]
[332666594,1721413843584,-897.42,0.00034246,14]
[332666596,1721413843593,-500.0,0.00034246,14]
[332666598,1721413843602,-500.0,0.00034246,14]
[332666600,1721413843611,-744.04,0.00034246,14]
[332666602,1721413843620,-622.34,0.00034246,14]
[332666604,1721413843630,-500.0,0.00034246,14]
[332666606,1721413843639,-500.0,0.00034246,14]
[332666608,1721413843648,-500.0,0.00034246,14]
[332666610,1721413843657,-1470.32,0.00034246,14]
[332666612,1721413843666,-789.46,0.00034246,14]
[332666614,1721413843675,-500.0,0.00034246,14]
[332666616,1721413843684,-500.0,0.00034246,14]
[332666618,1721413843693,-1142.72,0.00034246,14]
[332666620,1721413843703,-500.0,0.00034246,14]
[332666622,1721413843712,-894.51,0.00034246,14]
[332666624,1721413843722,-500.0,0.00034246,14]
[332666626,1721413843731,-1301.67,0.00034246,14]
[332666628,1721413843740,-500.0,0.00034246,14]
[332666630,1721413843749,-844.39,0.00034246,14]
[332666632,1721413843758,-565.09,0.00034246,14]
[332666634,1721413843767,-576.58,0.00034246,14]
[332666636,1721413843776,-500.0,0.00034246,14]
[332666638,1721413843785,-1896.18,0.00034246,14]
[332666640,1721413843795,-500.0,0.00034246,14]
[332666642,1721413843804,-500.0,0.00034246,14]
[332666643,1721413843813,-653.16,0.00034246,14]
[332666645,1721413843822,-500.0,0.00034246,14]
[332666647,1721413843831,-500.0,0.00034246,14]
[332666649,1721413843841,-500.0,0.00034246,14]
[332666651,1721413843850,-500.0,0.00034246,14]
[332666653,1721413843860,-500.0,0.00034246,14]
[332666655,1721413843869,-500.0,0.00034246,14]
[332666657,1721413843882,-500.0,0.00034246,14]
[332666659,1721413843892,-500.0,0.00034246,14]
[332666661,1721413843901,-789.79,0.00034246,14]
[332666663,1721413843911,-500.0,0.00034246,14]
[332666665,1721413843921,-1173.12,0.00034246,14]
[332666667,1721413843930,-500.0,0.00034246,14]
[332666669,1721413843939,-500.0,0.00034246,14]
[332666671,1721413843949,-542.4,0.00034246,14]
[332666673,1721413843971,-500.0,0.00034246,14]
[332666690,1721413844120,-500.0,0.00034246,14]
[332666693,1721413844138,-818.84,0.00034246,14]
[332666695,1721413844148,-500.0,0.00034246,14]
[332666697,1721413844157,-528.86,0.00034246,14]
[332666699,1721413844167,-228.82039363,0.00034246,14]
[332666700,1721413844175,-693.8,0.00034246,14]
[332666703,1721413844185,-500.0,0.00034246,14]
[332666705,1721413844195,-500.0,0.00034246,14]
[332666707,1721413844205,-333.78,0.00034246,14]
[332666709,1721413844214,-500.0,0.00034246,14]
[332666710,1721413844223,-616.03,0.00034246,14]
[332666713,1721413844233,-500.0,0.00034246,14]
[332666715,1721413844244,-500.0,0.00034246,14]
[332666717,1721413844253,-500.0,0.00034246,14]
[332666719,1721413844262,-500.0,0.00034246,14]
[332666721,1721413844271,-2534.91,0.00034246,14]
[332666723,1721413844281,-500.0,0.00034246,14]
[332666725,1721413844290,-512.93,0.00034246,14]
[332666727,1721413844300,-500.0,0.00034246,14]
[332666729,1721413844309,-500.0,0.00034246,14]
[332666731,1721413844320,-500.0,0.00034246,14]
[332666733,1721413844329,-3401.32,0.00034246,14]
[332666735,1721413844338,-902.83,0.00034246,14]
[332666737,1721413844347,-3549.02,0.00034246,14]
[332666739,1721413844357,-2837.37,0.00034246,14]
[332666741,1721413844366,-500.0,0.00034246,14]
[332666743,1721413844375,-500.0,0.00034246,14]
[332666745,1721413844385,-500.0,0.00034246,14]
[332666747,1721413844394,-500.0,0.00034246,14]
[332666749,1721413844405,-3100.44,0.00034246,14]
[332666751,1721413844414,-500.0,0.00034246,14]
[332666753,1721413844424,-500.0,0.00034246,14]
[332666755,1721413844433,-500.0,0.00034246,14]
[332666757,1721413844442,-500.0,0.00034246,14]
[332666759,1721413844452,-500.0,0.00034246,14]
[332666761,1721413844461,-1912.88,0.00034246,14]
[332666763,1721413844471,-1906.11,0.00034246,14]
[332666765,1721413844480,-736.29,0.00034246,14]
[332666767,1721413844490,-500.0,0.00034246,14]
[332666769,1721413844499,-5653.31,0.00034246,14]
[332666771,1721413844509,-1594.52,0.00034246,14]
[332666773,1721413844518,-1619.55,0.00034246,14]
[332666775,1721413844527,-13263.27,0.00034246,14]
[332666777,1721413844537,-500.0,0.00034246,14]
[332666779,1721413844547,-514.96,0.00034246,14]
[332666781,1721413844556,-4547.98,0.00034246,14]
[332666783,1721413844566,-500.0,0.00034246,14]
[332666785,1721413844575,-1153.64,0.00034246,14]
[332666787,1721413844585,-228.50544021,0.00034246,14]
[332666789,1721413844594,-500.0,0.00034246,14]
[332666791,1721413844604,-3533.12,0.00034246,14]
[332666793,1721413844613,-2944.78,0.00034246,14]
[332666795,1721413844623,-500.0,0.00034246,14]
[332666797,1721413844632,-715.43,0.00034246,14]
[332666799,1721413844641,-220.60431427,0.00034246,14]
[332666801,1721413844651,-3275.63,0.00034246,14]
[332666803,1721413844660,-500.0,0.00034246,14]
[332666805,1721413844670,-500.0,0.00034246,14]
[332666807,1721413844679,-5718.92,0.00034246,14]
[332666809,1721413844688,-317.53582695,0.00034246,14]
[332666811,1721413844698,-793.15,0.00034246,14]
[332666813,1721413844711,-607.56,0.00034246,14]
[332666815,1721413844720,-732.08,0.00034246,14]
[332666817,1721413844729,-5679.96,0.00034246,14]
[332666819,1721413844741,-1510.65,0.00034246,14]
[332666821,1721413844750,-500.0,0.00034246,14]
[332666823,1721413844759,-4962.03,0.00034246,14]
[332666825,1721413844770,-1139.65,0.00034246,14]
[332666827,1721413844779,-787.54,0.00034246,14]
[332666829,1721413844788,-783.47,0.00034246,14]
[332666831,1721413844797,-500.0,0.00034246,14]
[332666833,1721413844807,-3057.15,0.00034246,14]
[332666835,1721413844816,-566.59,0.00034246,14]
[332666837,1721413844825,-5643.07,0.00034246,14]
[332666838,1721413844835,-15521.91,0.00034246,14]
[332666840,1721413844844,-650.55,0.00034246,14]
[332666842,1721413844854,-500.0,0.00034246,14]
[332666844,1721413844863,-500.0,0.00034246,14]
[332666846,1721413844873,-724.42,0.00034246,14]
[332666848,1721413844886,-151.0,0.00034246,7]
[332666850,1721413844895,-624.67,0.00034246,14]
[332666852,1721413844904,-500.0,0.00034246,14]
[332666854,1721413844915,-5749.7,0.00034246,14]
[332666856,1721413844924,-1248.27,0.00034246,14]
[332666858,1721413844934,-500.0,0.00034246,14]
[332666860,1721413844943,-955.09,0.00034246,14]
[332666862,1721413844955,-500.0,0.00034246,14]
[332666864,1721413844967,-3272.67,0.00034246,14]
[332666866,1721413844977,-2954.88,0.00034246,14]
[332666868,1721413844987,-500.0,0.00034246,14]
[332666870,1721413844996,-500.0,0.00034246,14]
[332666871,1721413845006,-1443.88,0.00034246,14]
[332666872,1721413845015,-3473.99,0.00034246,14]
[332666873,1721413845024,-518.23,0.00034246,14]
[332666874,1721413845034,-8244.51,0.00034246,14]
[332666875,1721413845043,-1296.86,0.00034246,14]
[332666876,1721413845053,-500.0,0.00034246,14]
[332666877,1721413845062,-500.0,0.00034246,14]
[332666878,1721413845071,-151.0,0.00034246,7]
[332666879,1721413845081,-1444.05,0.00034246,14]
[332666880,1721413845090,-500.0,0.00034246,14]
[332666881,1721413845100,-7351.57,0.00034246,14]
[332666882,1721413845109,-4131.01,0.00034246,14]
[332666883,1721413845118,-500.0,0.00034246,14]
[332666884,1721413845128,-500.0,0.00034246,14]
[332666885,1721413845137,-762.36,0.00034246,14]
[332666886,1721413845146,-2487.73,0.00034246,14]
[332666887,1721413845156,-507.63,0.00034246,14]
[332666888,1721413845165,-202.245628,0.00034246,7]
[332666889,1721413845174,-3282.43,0.00034246,14]
[332666890,1721413845183,-2780.86,0.00034246,14]
[332666891,1721413845193,-3560.1,0.00034246,14]
[332666893,1721413845204,-202.245628,0.00034246,7]
[332666895,1721413845214,-4317.58,0.00034246,14]
[332666897,1721413845223,-1804.15,0.00034246,14]
[332666899,1721413845233,-500.0,0.00034246,14]
[332666901,1721413845243,-2625.86,0.00034246,14]
[332666903,1721413845252,-500.0,0.00034246,14]
[332666905,1721413845262,-1713.99,0.00034246,14]
[332666907,1721413845271,-2885.3,0.00034246,14]
[332666909,1721413845281,-738.84,0.00034246,14]
[332666911,1721413845290,-6453.13,0.00034246,14]
[332666913,1721413845299,-631.97,0.00034246,14]
[332666915,1721413845308,-500.0,0.00034246,14]
[332666917,1721413845318,-500.0,0.00034246,14]
[332666919,1721413845327,-577.13,0.00034246,14]
[332666921,1721413845336,-500.0,0.00034246,14]
[332666923,1721413845346,-3440.22,0.00034246,14]
[332666925,1721413845355,-1652.99,0.00034246,14]
[332666927,1721413845365,-500.0,0.00034246,14]
[332666929,1721413845374,-926.7,0.00034246,14]
[332666930,1721413845383,-2881.1,0.00034246,14]
[332666932,1721413845392,-500.0,0.00034246,14]
[332666934,1721413845401,-3366.71,0.00034246,14]
[332666936,1721413845410,-1626.28,0.00034246,14]
[332666939,1721413845420,-7404.88,0.00034246,14]
[332666940,1721413845429,-500.0,0.00034246,14]
[332666943,1721413845438,-500.0,0.00034246,14]
[332666944,1721413845447,-151.0,0.00034246,7]
[332666947,1721413845458,-2083.96,0.00034246,14]
[332666948,1721413845467,-4618.08,0.00034246,14]
[332666951,1721413845477,-1506.78,0.00034246,14]
[332666953,1721413845486,-500.0,0.00034246,14]
[332666955,1721413845496,-6661.72,0.00034246,14]
[332666957,1721413845505,-7405.91,0.00034246,14]
[332666960,1721413845526,-4500.33,0.00034246,14]
[332666962,1721413845535,-773.42,0.00034246,14]
[332666963,1721413845545,-4052.8,0.00034246,14]
[332666966,1721413845555,-699.1,0.00034246,14]
[332666968,1721413845565,-802.27,0.00034246,14]
[332666970,1721413845575,-152.355332,0.00034246,7]
[332666972,1721413845585,-522.84,0.00034246,14]
[332666974,1721413845595,-1000.94,0.00034246,14]
[332666976,1721413845605,-391.69890172,0.00034246,14]
[332666977,1721413845614,-155.813534,0.00034246,7]
[332666979,1721413845625,-2408.23,0.00034246,14]
[332666981,1721413845635,-3636.39,0.00034246,14]
[332666983,1721413845644,-602.1,0.00034246,14]
[332666985,1721413845654,-500.0,0.00034246,14]
[332666987,1721413845664,-500.0,0.00034246,14]
[332666989,1721413845674,-4280.83,0.00034246,14]
[332666991,1721413845683,-3325.68,0.00034246,14]
[332666993,1721413845693,-3507.14,0.00034246,14]
[332666995,1721413845703,-500.0,0.00034246,14]
[332666997,1721413845713,-500.0,0.00034246,14]
[332666999,1721413845723,-541.82210054,0.00034246,14]
[332667001,1721413845733,-1616.1,0.00034246,14]
[332667003,1721413845743,-1062.75,0.00034246,14]
[332667005,1721413845753,-2329.98,0.00034246,14]
[332667007,1721413845762,-503.83,0.00034246,14]
[332667009,1721413845772,-2203.59,0.00034246,14]
[332667011,1721413845782,-657.33,0.00034246,14]
[332667013,1721413845792,-909.93,0.00034246,14]
[332667015,1721413845802,-500.0,0.00034246,14]
[332667018,1721413845812,-500.0,0.00034246,14]
[332667020,1721413845822,-3544.36,0.00034246,14]
[332667022,1721413845831,-544.98,0.00034246,14]
[332667024,1721413845841,-4482.12,0.00034246,14]
[332667026,1721413845851,-500.0,0.00034246,14]
[332667028,1721413845861,-800.98,0.00034246,14]
[332667030,1721413845871,-917.65,0.00034246,14]
[332667032,1721413845886,-151.0,0.00034246,7]
[332667034,1721413845896,-500.0,0.00034246,14]
[332667036,1721413845905,-4123.81,0.00034246,14]
[332667039,1721413845915,-500.0,0.00034246,14]
[332667041,1721413845926,-504.15,0.00034246,14]
[332667043,1721413845936,-597.08,0.00034246,14]
[332667045,1721413845949,-2175.63,0.00034246,14]
[332667048,1721413845962,-3177.38,0.00034246,14]
[332667050,1721413845972,-500.0,0.00034246,14]
[332667052,1721413845982,-3842.92,0.00034246,14]
[332667054,1721413845992,-151.0,0.00034246,7]
[332667056,1721413846002,-2470.01,0.00034246,14]
[332667058,1721413846014,-2037.2,0.00034246,14]
[332667060,1721413846024,-1197.36,0.00034246,14]
[332667062,1721413846034,-512.75,0.00034246,14]
[332667064,1721413846044,-151.0,0.00034246,7]
[332667066,1721413846053,-500.0,0.00034246,14]
[332667068,1721413846063,-1573.5,0.00034246,14]
[332667070,1721413846074,-2539.4,0.00034246,14]
[332667074,1721413846083,-500.0,0.00034246,14]
[332667077,1721413846093,-500.0,0.00034246,14]
[332667080,1721413846102,-152.46399,0.00034246,7]
[332667083,1721413846113,-2932.46,0.00034246,14]
[332667086,1721413846124,-500.0,0.00034246,14]
[332667088,1721413846133,-2628.83,0.00034246,14]
[332667090,1721413846143,-500.0,0.00034246,14]
[332667093,1721413846154,-2632.88,0.00034246,14]
[332667095,1721413846165,-500.0,0.00034246,14]
[332667097,1721413846174,-684.11,0.00034246,14]
[332667099,1721413846184,-1422.67,0.00034246,14]
[332667101,1721413846194,-151.0,0.00034246,7]
[332667103,1721413846205,-187.233964,0.00034252,7]
[332667105,1721413846214,-426.37,0.00034267,2]
[332667107,1721413846224,-1000.0,0.00034283,2]
[332667109,1721413846234,-5000.0,0.00034283,2]
[332667111,1721413846243,-460.3253,0.00034283,2]
[332667113,1721413846253,-160.0,0.0003433,28]
[332667115,1721413846263,-642.74546136,0.00034357,10]
[332667117,1721413846273,-158.0,0.00034362,5]
[332667119,1721413846283,-2330.12,0.00034363,14]
[332667121,1721413846293,-1009.41,0.00034363,14]
[332667123,1721413846302,-301.87308028,0.00034363,14]
[332667125,1721413846312,-1043.51,0.00034363,14]
[332667127,1721413846322,-1224.57,0.00034363,14]
[332667129,1721413846332,-500.0,0.00034363,14]
[332667131,1721413846341,-1076.79,0.00034363,14]
[332667133,1721413846351,-1016.92,0.00034363,14]
[332667135,1721413846360,-500.0,0.00034363,14]
[332667137,1721413846369,-526.87,0.00034363,14]
[332667139,1721413846379,-848.92,0.00034363,14]
[332667141,1721413846388,-1375.43,0.00034363,14]
[332667143,1721413846398,-500.0,0.00034363,14]
[332667177,1721413846667,-500.0,0.00034363,14]
[332667180,1721413846727,-2278.27,0.00034363,14]
[332667182,1721413846737,-2319.73,0.00034363,14]
[332667184,1721413846747,-1246.66,0.00034363,14]
[332667186,1721413846756,-500.0,0.00034363,14]
[332667188,1721413846765,-500.0,0.00034363,14]
[332667190,1721413846774,-902.34,0.00034363,14]
[332667192,1721413846783,-1953.22,0.00034363,14]
[332667194,1721413846793,-500.0,0.00034363,14]
[332667196,1721413846802,-1035.68,0.00034363,2]
[332667198,1721413846812,-500.0,0.00034363,14]
[332667200,1721413846821,-500.0,0.00034363,14]
[332667202,1721413846831,-500.0,0.00034363,14]
[332667204,1721413846840,-1163.3,0.00034363,14]
[332667206,1721413846850,-936.53,0.00034363,14]
[332667208,1721413846859,-737.19,0.00034363,14]
[332667210,1721413846869,-1934.96,0.00034363,14]
[332667212,1721413846883,-500.0,0.00034363,14]
[332667214,1721413846892,-925.65,0.00034363,14]
[332667216,1721413846901,-657.37,0.00034363,14]
[332667218,1721413846910,-1123.08,0.00034363,14]
[332667220,1721413846921,-1210.52,0.00034363,14]
[332667222,1721413846931,-1219.62,0.00034363,14]
[332667224,1721413846940,-540.23,0.00034363,14]
[332667226,1721413846949,-500.0,0.00034363,14]
[332667228,1721413846960,-500.0,0.00034363,14]
[332667230,1721413846970,-1659.32,0.00034363,14]
[332667232,1721413846979,-1467.08,0.00034363,14]
[332667234,1721413846988,-500.0,0.00034363,14]
[332667236,1721413846998,-1017.22,0.00034363,14]
[332667238,1721413847007,-1918.93,0.00034363,14]
[332667240,1721413847017,-912.39,0.00034363,14]
[332667242,1721413847026,-887.65,0.00034363,14]
[332667244,1721413847036,-1131.15,0.00034363,14]
[332667246,1721413847046,-1024.84,0.00034363,14]
[332667248,1721413847055,-500.0,0.00034363,14]
[332667250,1721413847065,-967.99,0.00034363,14]
[332667252,1721413847075,-1211.38,0.00034363,14]
[332667254,1721413847084,-949.76,0.00034363,14]
[332667256,1721413847094,-1599.33,0.00034363,14]
[332667258,1721413847103,-500.0,0.00034363,14]
[332667261,1721413847112,-198.729146,0.00034363,7]
[332667263,1721413847122,-1032.39,0.00034363,14]
[332667265,1721413847132,-915.15,0.00034363,14]
[332667267,1721413847142,-500.0,0.00034363,14]
[332667269,1721413847151,-638.73,0.00034363,14]
[332667271,1721413847160,-202.245628,0.00034363,7]
[332667273,1721413847170,-202.245628,0.00034363,7]
[332667275,1721413847179,-500.0,0.00034363,14]
[332667277,1721413847188,-983.8,0.00034363,14]
[332667279,1721413847198,-1492.96,0.00034363,14]
[332667281,1721413847208,-1089.5,0.00034363,14]
[332667283,1721413847218,-500.0,0.00034363,14]
[332667285,1721413847227,-845.86,0.00034363,14]
[332667287,1721413847237,-560.55,0.00034363,14]
[332667289,1721413847247,-1027.75,0.00034363,14]
[332667291,1721413847258,-1179.31,0.00034363,14]
[332667293,1721413847267,-500.0,0.00034363,14]
[332667295,1721413847279,-1188.0,0.00034363,14]
[332667297,1721413847289,-786.22,0.00034363,14]
[332667299,1721413847299,-1179.88,0.00034372,14]
[332667301,1721413847309,-500.0,0.00034372,14]
[332667303,1721413847319,-500.0,0.00034372,14]
[332667305,1721413847328,-500.0,0.00034372,14]
[332667307,1721413847338,-500.0,0.00034372,14]
[332667309,1721413847348,-1242.73,0.00034372,14]
[332667311,1721413847358,-505.01296926,0.00034372,14]
[332667312,1721413847367,-500.0,0.00034372,14]
[332667314,1721413847377,-924.14,0.00034372,14]
[332667316,1721413847386,-500.0,0.00034372,14]
[332667318,1721413847395,-500.0,0.00034372,14]
[332667320,1721413847407,-603.13,0.00034372,14]
[332667322,1721413847429,-500.0,0.00034372,14]
[332667324,1721413847466,-500.0,0.00034372,14]
[332667326,1721413847541,-500.0,0.00034372,14]
[332667328,1721413847680,-500.0,0.00034372,14]
[332667330,1721413847788,-500.0,0.00034372,14]
[332667332,1721413847864,-704.67,0.00034372,14]
[332667334,1721413847954,-500.0,0.00034372,14]
[332667336,1721413848049,-972.33,0.00034372,14]
[332667339,1721413848165,-500.0,0.00034372,14]
[332667340,1721413848183,-500.0,0.00034372,14]
[332667342,1721413848194,-1381.93,0.00034372,14]
[332667344,1721413848206,-500.0,0.00034372,14]